fUST/lending_fUST_20250109
["ID","MTS","AMOUNT","RATE_DAILY","PERIOD"]
[348278458,1736431634444,-151.0,0.00023287,7]
[348278459,1736431634467,-151.0,0.00023287,7]
[348278460,1736431634489,-151.0,0.00023287,7]
[348278461,1736431634511,-151.0,0.00023287,7]
[348278462,1736431634532,-151.0,0.00023287,7]
[348278463,1736431634555,-151.0,0.00023287,7]
[348278464,1736431634579,-151.0,0.00023287,7]
[348278465,1736431634600,-151.0,0.00023287,7]
[348278466,1736431634621,-151.0,0.00023287,7]
[348278467,1736431634641,-151.0,0.00023287,7]
[348278468,1736431634664,-151.0,0.00023287,7]
[348278469,1736431634687,-151.0,0.00023287,7]
[348278470,1736431634710,-151.0,0.00023287,7]
[348278471,1736431634731,-151.0,0.00023287,7]
[348278472,1736431634751,-151.0,0.00023287,7]
[348278473,1736431634772,-151.0,0.00023287,2]
[348278474,1736431634793,-151.000001,0.00023287,7]
[348278475,1736431634818,-151.0,0.00023287,7]
[348278476,1736431634838,-151.0,0.00023287,7]
[348278477,1736431634859,-240.606194,0.00023287,7]
[348278478,1736431634879,-151.0,0.00023287,7]
[348278479,1736431634900,-151.0,0.00023287,7]
[348278480,1736431634921,-174.506445,0.00023287,7]
[348278481,1736431634942,-151.0,0.00023287,7]
[348278482,1736431634963,-151.0,0.00023287,7]
[348278483,1736431634983,-151.0,0.00023287,7]
[348278484,1736431635004,-151.0,0.00023287,7]
[348278485,1736431635025,-151.0,0.00023287,7]
[348278486,1736431635045,-151.0,0.00023287,7]
[348278487,1736431635067,-151.0,0.00023287,7]
[348278488,1736431635088,-151.0,0.00023287,7]
[348278489,1736431635109,-237.302024,0.00023287,7]
[348278490,1736431635130,-151.0,0.00023287,7]
[348278491,1736431635152,-230.675764,0.00023287,7]
[348278492,1736431635172,-151.0,0.00023287,7]
[348278493,1736431635194,-151.0,0.00023287,7]
[348278494,1736431635215,-151.0,0.00023287,7]
[348278495,1736431635236,-151.721553,0.00023287,7]
[348278496,1736431635258,-151.0,0.00023287,7]
[348278497,1736431635279,-151.0,0.00023287,7]
[348278498,1736431635300,-151.0,0.00023287,7]
[348278499,1736431635324,-151.0,0.00023287,7]
[348278500,1736431635345,-151.0,0.00023287,7]
[348278501,1736431635367,-151.0,0.00023287,7]
[348278502,1736431635390,-151.0,0.00023287,7]
[348278503,1736431635412,-151.0,0.00023287,7]
[348278504,1736431635435,-151.0,0.00023287,7]
[348278505,1736431635456,-151.0,0.00023287,7]
[348278506,1736431635478,-151.0,0.00023287,7]
[348278507,1736431635500,-254.093592,0.00023287,7]
[348278508,1736431635522,-151.0,0.00023287,7]
[348278509,1736431635545,-151.0,0.00023287,7]
[348278510,1736431635570,-151.0,0.00023287,7]
[348278511,1736431635592,-233.388476,0.00023287,7]
[348278512,1736431635627,-4635.26026768,0.0002329,10]
[348278513,1736431635649,-151.0,0.00023293,7]
[348278514,1736431635670,-151.0,0.00023293,7]
[348278515,1736431635690,-193.968581,0.00023294,7]
[348278516,1736431635711,-151.0,0.00023294,7]
[348278517,1736431635732,-151.0,0.00023294,7]
[348278518,1736431635752,-151.0,0.00023294,7]
[348278519,1736431635854,-151.0,0.00023294,7]
[348278520,1736431635875,-235.43255,0.00023294,7]
[348278521,1736431635897,-151.0,0.00023294,7]
[348278522,1736431635919,-151.0,0.00023294,7]
[348278523,1736431635941,-151.0,0.00023294,7]
[348278524,1736431635962,-151.0,0.00023294,7]
[348278525,1736431635983,-151.0,0.00023294,7]
[348278526,1736431636004,-151.0,0.00023294,7]
[348278527,1736431636025,-151.0,0.00023294,7]
[348278528,1736431636046,-151.0,0.00023294,7]
[348278529,1736431636067,-150.2,0.00023294,10]
[348278530,1736431636088,-150.2,0.00023294,10]
[348278531,1736431636108,-150.2,0.00023294,10]
[348278532,1736431636129,-207.94985808,0.00023294,10]
[348278533,1736431636150,-300.23,0.00023294,10]
[348278534,1736431636172,-150.57865465,0.00023294,10]
[348278535,1736431636194,-150.52006276,0.00023294,10]
[348278536,1736431636216,-150.21,0.00023294,10]
[348278537,1736431636236,-150.21,0.00023294,10]
[348278538,1736431636257,-2462.2,0.000233,14]
[348278539,1736431636280,-3769.40350697,0.000233,14]
[348278540,1736431636380,-1275.95038676,0.000233,14]
[348278541,1736431638112,-1580.27610627,0.000233,14]
[348278542,1736431638135,-6636.91,0.000233,2]
[348278543,1736431638157,-151.0,0.000233,7]
[348278544,1736431638178,-619.0,0.000233,2]
[348278545,1736431638199,-155.549415,0.000233,2]
[348278546,1736431638221,-4193.0,0.00023328,7]
[348278547,1736431638247,-500.0,0.00023549,3]
[348278548,1736431638272,-1751.25,0.00023553,3]
[348278549,1736431638297,-646.15,0.00023558,3]
[348278550,1736431638323,-150.21,0.00023568,10]
[348278551,1736431638345,-231.34125386,0.00023568,10]
[348278552,1736431638370,-1080.31678925,0.00023821,2]
[348278553,1736431638396,-1000.0,0.00023821,2]
[348278554,1736431638423,-500.0,0.00023823,3]
[348278555,1736431638451,-1751.25,0.00023827,3]
[348278556,1736431638480,-646.15,0.00023832,3]
[348278557,1736431638508,-199.58,0.00023842,10]
[348278558,1736431638531,-416.62,0.00023844,2]
[348278559,1736431638553,-22807.86045706,0.0002399,30]
[348278560,1736431638581,-50000.0,0.00024,15]
[348278561,1736431638604,-500.0,0.00024,4]
[348278562,1736431638632,-153.51,0.00024,31]
[348278563,1736431638662,-153.51,0.00024,31]
[348278564,1736431638687,-309.97616574,0.00024097,3]
[348278565,1736431638711,-1751.25,0.00024101,3]
[348278566,1736431638734,-420.0,0.00024105,2]
[348278567,1736431638759,-646.15,0.00024106,3]
[348278568,1736431638781,-179.175071,0.0002411,2]
[348278569,1736431638808,-179.175071,0.0002411,41]
[348278570,1736431638836,-179.175071,0.0002411,80]
[348278571,1736431638859,-179.175071,0.0002411,119]
[348278572,1736431638881,-2500.0,0.00024356,2]
[348278573,1736431638906,-1751.25,0.00024375,3]
[348278574,1736431638936,-646.15,0.0002438,3]
[348278575,1736431638960,-1751.25,0.00024649,3]
[348278576,1736431638985,-646.15,0.00024654,3]
[348278577,1736431639006,-200.0,0.00024658,2]
[348278578,1736431639029,-380.0,0.00024658,2]
[348278579,1736431639051,-502.03038859,0.00024822,2]
[348278580,1736431639082,-158.42535881,0.0002485,14]
[348278581,1736431639106,-2702.29857655,0.000249,60]
[348278582,1736431639133,-153.51,0.000249,31]
[348278583,1736431639160,-153.51,0.000249,31]
[348278584,1736431639186,-1751.25,0.00024923,3]
[348278585,1736431639213,-646.15,0.00024928,3]
[348278586,1736431639236,-1234.599885,0.0002494,10]
[348278587,1736431639259,-601.004,0.0002496,2]
[348278588,1736431639281,-1000.0,0.0002496,10]
[348278589,1736431639305,-500.0,0.00024973,2]
[348278590,1736431639334,-1000.0,0.0002498,10]
[348278591,1736431639359,-394.0,0.00024994,2]
[348278592,1736431639382,-1000.5,0.00025,31]
[348278593,1736431639407,-500.5,0.00025,31]
[348278594,1736431639431,-48.52662787,0.00025,31]
[348278595,1736431642114,-480.2977516,0.00023273,2]
[348278596,1736431647140,-19.7022484,0.00023273,2]
[348278597,1736431647164,-20301.8297156,0.00023287,5]
[348278598,1736431650099,-500.0,0.00019985,2]
[348278599,1736431650123,-314.29334457,0.00020259,2]
[348278600,1736431652095,-185.70665543,0.00020259,2]
[348278601,1736431652119,-71.00065358,0.00020533,2]
[348278629,1736431833103,-300.0,0.00019984,2]
[348278630,1736431833113,-500.0,0.00019985,3]
[348278631,1736431833122,-513.09,0.00019985,3]
[348278632,1736431833132,-500.0,0.00019985,3]
[348278633,1736431833142,-500.0,0.00019985,3]
[348278634,1736431833152,-616.21,0.00019985,3]
[348278635,1736431833161,-500.0,0.00019985,3]
[348278636,1736431833170,-500.0,0.00019985,3]
[348278637,1736431833179,-500.0,0.00019985,3]
[348278638,1736431833188,-500.0,0.00019985,3]
[348278639,1736431833198,-500.0,0.00019987,3]
[348278640,1736431833207,-656.72,0.00019987,3]
[348278641,1736431833217,-500.0,0.00019987,3]
[348278642,1736431833227,-356.26101708,0.00019989,3]
[348278643,1736431833237,-500.0,0.00019993,3]
[348278644,1736431833246,-500.0,0.00020259,3]
[348278645,1736431833256,-656.72,0.00020261,3]
[348278646,1736431833266,-500.0,0.00020267,3]
[348278647,1736431833276,-428.99934642,0.00020533,2]
[348278648,1736431833286,-500.0,0.00020533,3]
[348278649,1736431833296,-656.72,0.00020535,3]
[348278650,1736431833305,-500.0,0.00020541,3]
[348278651,1736431833315,-257.94373211,0.00020807,2]
[348278652,1736431833325,-500.0,0.00020807,3]
[348278653,1736431833335,-656.72,0.00020809,3]
[348278654,1736431833344,-500.0,0.00020815,3]
[348278655,1736431833354,-458.0894406,0.00021081,3]
[348278656,1736431833364,-656.72,0.00021083,3]
[348278657,1736431833378,-438.8542036,0.00021089,3]
[348278658,1736431833388,-604.80965965,0.00021158,2]
[348278659,1736431833398,-656.72,0.00021357,3]
[348278660,1736431833412,-656.72,0.00021631,3]
[348278661,1736431833422,-342.34826979,0.0002189,2]
[348278662,1736431833432,-656.72,0.00021905,3]
[348278663,1736431833443,-656.72,0.00022179,3]
[348278664,1736431833453,-656.72,0.00022453,3]
[348278665,1736431833462,-656.72,0.00022727,3]
[348278666,1736431833477,-216.91,0.00023,2]
[348278667,1736431833487,-426.55429298,0.00023001,3]
[348278780,1736431839243,-230.16570702,0.00023001,3]
[348278782,1736431839252,-394.0,0.00023096,2]
[348278784,1736431839261,-196.51398406,0.00023173,2]
[348278786,1736431839271,-151.0,0.00023273,2]
[348278788,1736431839280,-656.72,0.00023275,3]
[348278790,1736431839290,-169.34641181,0.00023283,2]
[348278792,1736431839299,-425.59269214,0.00023283,2]
[348278794,1736431839308,-29387.95899841,0.00023284,5]
[348278796,1736431839318,-6596.85974962,0.00023284,5]
[348278798,1736431839327,-89310.39552859,0.00023284,10]
[348278801,1736431839343,-69809.61325122,0.00023284,10]
[348278803,1736431839355,-7331.39627505,0.00023284,10]
[348278805,1736431839364,-11435.72506176,0.00023284,10]
[348278807,1736431839375,-9453.79939388,0.00023284,10]
[348278809,1736431839386,-11912.44375614,0.00023284,10]
[348278983,1736431841558,-13320.962812,0.00023284,10]
[348278986,1736431841570,-18431.9,0.00023284,10]
[348278988,1736431841582,-363.7868635,0.00023284,10]
[348279280,1736431845014,-42857.74425606,0.00023284,10]
[348279333,1736431845509,-370.36,0.00023284,10]
[348279473,1736431846780,-78795.71167544,0.00023284,10]
[348279480,1736431846835,-16896.95748162,0.00023284,10]
[348279689,1736431848872,-41289.10992,0.00023284,10]
[348279694,1736431848912,-5674.38895894,0.00023284,10]
[348279696,1736431848925,-919.7,0.00023284,10]
[348279701,1736431848960,-2257.947996,0.00023284,10]
[348279703,1736431848971,-18377.60000002,0.00023284,10]
[348283409,1736432549371,400.0,0.00013973,2]
[348283410,1736432802728,4461.0,0.0001505,2]
[348283412,1736432828113,-1879.11794398,0.00018607,2]
[348283413,1736432843102,-400.92967763,0.00018507,2]
[348283414,1736432843125,-165.88205602,0.00018607,2]
[348283415,1736432843147,-16.33292658,0.00018607,2]
[348283416,1736432843174,-149.32245092,0.00018607,2]
[348283417,1736432843195,-69.35469033,0.00018758,2]
[348283418,1736432846132,-302.51273867,0.00018758,2]
[348283419,1736432846156,-458.73245661,0.00018943,2]
[348283436,1736432949081,-646.49072331,0.00016,2]
[348283437,1736432949101,-2521.01270832,0.00017,2]
[348283438,1736432949121,-1014.53784676,0.00017,7]
[348283439,1736432949147,-2658.31271938,0.00017,7]
[348283523,1736433033127,-380.43782513,0.000189,2]
[348283525,1736433033137,-728.53617487,0.00018943,2]
[348283528,1736433033149,-1078.50645482,0.00018943,2]
[348283529,1736433033159,-302.9697091,0.00019,2]
[348283532,1736433033168,-404.806,0.00019097,2]
[348283534,1736433033178,-6624.3617996,0.00019347,2]
[348283536,1736433033188,-300.0,0.00019884,2]
[348283538,1736433033198,-1721.42436166,0.00019885,2]
[348283540,1736433033209,-618.54755277,0.00019885,2]
[348283542,1736433033218,-533.26048215,0.00019985,3]
[348283544,1736433033228,-562.75,0.00019986,2]
[348283546,1736433033237,-500.0,0.00019986,3]
[348283547,1736433033247,-500.0,0.00019986,3]
[348283548,1736433033256,-500.0,0.00019986,3]
[348283549,1736433033265,-500.0,0.00019986,3]
[348283550,1736433033275,-221.01352326,0.00019986,2]
[348283551,1736433033286,-293.76756285,0.00019986,2]
[348283552,1736433033296,-500.0,0.00019986,2]
[348283553,1736433033305,-500.0,0.00019986,2]
[348283554,1736433033314,-500.0,0.00019986,2]
[348283555,1736433033324,-568.67789165,0.00019986,2]
[348283556,1736433033335,-621.58255398,0.00019986,2]
[348283557,1736433033344,-500.0,0.00019986,2]
[348283558,1736433033354,-163.90042536,0.00019986,2]
[348283559,1736433033363,-500.0,0.00019986,3]
[348283560,1736433033372,-500.0,0.00019986,3]
[348283561,1736433033381,-500.0,0.00019986,3]
[348283562,1736433033391,-500.0,0.00019986,3]
[348283563,1736433033400,-500.0,0.00019986,3]
[348283564,1736433033409,-500.0,0.00019986,3]
[348283565,1736433033419,-500.0,0.00019986,3]
[348283566,1736433033428,-500.0,0.00019986,3]
[348283567,1736433033438,-500.0,0.00019986,3]
[348283568,1736433033447,-500.0,0.00019986,3]
[348283570,1736433033457,-500.0,0.00019986,3]
[348283572,1736433033466,-500.0,0.00019986,3]
[348283574,1736433033475,-500.0,0.00019986,3]
[348283576,1736433033485,-500.0,0.00019986,3]
[348283579,1736433033495,-387.6775002,0.00019986,3]
[348283580,1736433033504,-500.0,0.00019986,3]
[348283582,1736433033514,-385.12828622,0.00019986,2]
[348283585,1736433033524,-500.0,0.00019987,3]
[348283586,1736433033533,-500.0,0.00019987,3]
[348283588,1736433033543,-500.0,0.00019987,3]
[348283590,1736433033552,-500.0,0.00019987,3]
[348283592,1736433033561,-500.0,0.00019987,3]
[348283595,1736433033570,-500.0,0.00019987,3]
[348283597,1736433033583,-500.0,0.00019987,3]
[348283599,1736433033593,-500.0,0.00019987,3]
[348283601,1736433033602,-500.0,0.00019987,3]
[348283603,1736433033611,-500.0,0.00019987,3]
[348283605,1736433033621,-500.0,0.00019987,3]
[348283607,1736433033631,-500.0,0.00019987,3]
[348283609,1736433033640,-500.0,0.00019987,3]
[348283611,1736433033650,-500.0,0.00019987,3]
[348283613,1736433033659,-500.0,0.00019987,3]
[348283615,1736433033669,-500.0,0.00019987,3]
[348283617,1736433033678,-428.26973915,0.00019987,3]
[348283619,1736433033687,-209.55889495,0.00019987,3]
[348283633,1736433033816,-500.0,0.00019987,3]
[348283635,1736433033827,-500.0,0.00019987,3]
[348283637,1736433033838,-500.0,0.00019987,3]
[348283639,1736433033848,-500.0,0.00019987,3]
[348283640,1736433033858,-500.0,0.00019987,3]
[348283642,1736433033868,-500.0,0.00019987,3]
[348283644,1736433033878,-501.66193303,0.00019987,3]
[348283647,1736433033887,-500.98622586,0.00019987,3]
[348283649,1736433033897,-500.0,0.00019987,3]
[348283651,1736433033907,-500.0,0.00019987,3]
[348283653,1736433033917,-500.0,0.00019987,3]
[348283654,1736433033926,-500.0,0.00019987,3]
[348283656,1736433033936,-500.0,0.00019987,3]
[348283659,1736433033946,-556.08416536,0.00019987,3]
[348283661,1736433033955,-500.0,0.00019987,3]
[348283663,1736433033965,-503.28756555,0.00019987,3]
[348283665,1736433033974,-562.36,0.00019987,3]
[348283667,1736433033983,-500.0,0.00019987,3]
[348283669,1736433033993,-510.49000631,0.00019987,3]
[348283671,1736433034003,-500.0,0.00019987,3]
[348283673,1736433034013,-500.0,0.00019987,3]
[348283675,1736433034023,-500.0,0.00019987,3]
[348283677,1736433034033,-500.0,0.00019987,3]
[348283679,1736433034043,-500.0,0.00019987,3]
[348283681,1736433034052,-500.0,0.00019987,3]
[348283683,1736433034062,-500.0,0.00019987,3]
[348283685,1736433034072,-500.0,0.00019987,3]
[348283687,1736433034083,-504.16855487,0.00019987,3]
[348283689,1736433034092,-500.0,0.00019987,3]
[348283691,1736433034102,-500.0,0.00019987,3]
[348283693,1736433034112,-500.0,0.00019987,3]
[348283695,1736433034122,-500.81962032,0.00019987,3]
[348283697,1736433034131,-500.0,0.00019987,3]
[348283699,1736433034140,-500.0,0.00019987,3]
[348283701,1736433034150,-500.0,0.00019987,3]
[348283703,1736433034159,-500.0,0.00019987,3]
[348283705,1736433034168,-500.0,0.00019987,3]
[348283707,1736433034178,-500.0,0.00019987,3]
[348283709,1736433034188,-500.0,0.00019987,3]
[348283711,1736433034197,-500.0,0.00019987,3]
[348283713,1736433034207,-500.0,0.00019987,3]
[348283715,1736433034216,-500.0,0.00019987,3]
[348283717,1736433034225,-500.0,0.00019987,3]
[348283719,1736433034235,-507.93396735,0.00019987,3]
[348283721,1736433034245,-500.0,0.00019987,3]
[348283723,1736433034254,-500.0,0.00019987,3]
[348283725,1736433034264,-500.0,0.00019987,3]
[348283727,1736433034273,-500.0,0.00019987,3]
[348283729,1736433034283,-500.0,0.00019987,3]
[348283731,1736433034293,-500.0,0.00019987,3]
[348283733,1736433034303,-500.0,0.00019987,3]
[348283735,1736433034312,-500.0,0.00019987,3]
[348283737,1736433034322,-511.78806505,0.00019987,3]
[348283739,1736433034331,-500.0,0.00019987,3]
[348283741,1736433034341,-500.0,0.00019987,3]
[348283743,1736433034351,-500.0,0.00019987,3]
[348283745,1736433034360,-502.42766317,0.00019987,3]
[348283747,1736433034370,-500.0,0.00019987,3]
[348283749,1736433034380,-500.0,0.00019987,3]
[348283751,1736433034389,-500.75194839,0.00019987,3]
[348283753,1736433034398,-500.0,0.00019987,3]
[348283755,1736433034407,-500.0,0.00019987,3]
[348283757,1736433034417,-500.0,0.00019987,3]
[348283759,1736433034426,-500.0,0.00019987,3]
[348283761,1736433034436,-500.0,0.00019987,3]
[348283763,1736433034445,-500.0,0.00019987,3]
[348283766,1736433034455,-1063.25852235,0.00019987,3]
[348283768,1736433034468,-963.38147765,0.00019987,3]
[348283770,1736433034477,-500.5797417,0.00019987,3]
[348283772,1736433034487,-500.0,0.00019987,3]
[348283774,1736433034497,-500.0,0.00019987,3]
[348283776,1736433034506,-500.0,0.00019987,3]
[348283778,1736433034515,-500.0,0.00019987,3]
[348283780,1736433034525,-500.0,0.00019987,3]
[348283782,1736433034534,-500.0,0.00019987,3]
[348283784,1736433034544,-500.0,0.00019987,3]
[348283786,1736433034554,-500.0,0.00019987,3]
[348283788,1736433034563,-500.8055289,0.00019987,3]
[348283790,1736433034573,-500.0,0.00019987,3]
[348283792,1736433034584,-500.0,0.00019987,3]
[348283794,1736433034593,-500.0,0.00019987,3]
[348283796,1736433034603,-502.23272226,0.00019987,3]
[348283798,1736433034613,-154.04,0.00019987,2]
[348283800,1736433034623,-756.54,0.00019993,3]
[348283802,1736433034632,-500.0,0.00019993,3]
[348283804,1736433034642,-500.0,0.00019995,3]
[348283807,1736433034651,-663.66821253,0.0002,2]
[348283808,1736433034661,-256.95411532,0.00020258,3]
[348283810,1736433034671,-386.24581853,0.00020258,3]
[348283813,1736433034683,-113.75418147,0.00020258,3]
[348283815,1736433034693,-284.1195,0.00020258,3]
[348283817,1736433034702,-231.67979924,0.00020258,3]
[348283819,1736433034711,-272.66459683,0.00020258,3]
[348283821,1736433034720,-500.0,0.00020258,3]
[348283823,1736433034729,-126.3659285,0.00020258,5]
[348283825,1736433034741,-373.6340715,0.00020258,5]
[348283827,1736433034754,-390.52183207,0.00020258,3]
[348283829,1736433034769,-109.47816793,0.00020258,3]
[348283831,1736433034779,-500.0,0.00020258,3]
[348283833,1736433034789,-500.0,0.00020258,3]
[348283835,1736433034800,-500.0,0.00020258,3]
[348283837,1736433034810,-500.0,0.00020258,3]
[348283839,1736433034820,-500.0,0.00020258,3]
[348283841,1736433034831,-500.0,0.00020258,3]
[348283843,1736433034842,-500.0,0.00020258,3]
[348283845,1736433034852,-206.21897067,0.00020258,3]
[348283847,1736433034862,-500.0,0.00020258,3]
[348283849,1736433034871,-500.0,0.00020258,3]
[348283851,1736433034880,-500.0,0.00020258,3]
[348283853,1736433034890,-500.0,0.00020258,3]
[348283855,1736433034900,-500.0,0.00020258,3]
[348283857,1736433034910,-173.57957309,0.00020258,3]
[348283859,1736433034919,-500.0,0.00020258,3]
[348283861,1736433034928,-500.0,0.00020258,3]
[348283863,1736433034938,-500.0,0.00020258,3]
[348283865,1736433034947,-470.97040225,0.00020258,3]
[348283867,1736433034957,-500.0,0.00020258,3]
[348283869,1736433034967,-500.0,0.00020258,3]
[348283871,1736433034977,-500.0,0.00020258,3]
[348283873,1736433034986,-500.0,0.00020258,3]
[348283875,1736433034996,-500.0,0.00020258,3]
[348283877,1736433035005,-562.75,0.0002026,2]
[348283879,1736433035015,-500.0,0.0002026,3]
[348283881,1736433035025,-196.71,0.0002026,3]
[348283883,1736433035035,-500.0,0.0002026,3]
[348283885,1736433035045,-500.0,0.0002026,3]
[348283887,1736433035055,-529.61964726,0.0002026,3]
[348283889,1736433035064,-537.57476367,0.0002026,3]
[348283891,1736433035074,-500.0,0.0002026,3]
[348283893,1736433035086,-500.0,0.0002026,3]
[348283895,1736433035096,-500.0,0.0002026,3]
[348283897,1736433035106,-500.0,0.00020261,3]
[348283899,1736433035115,-469.13526086,0.00020261,3]
[348283901,1736433035125,-500.0,0.00020261,3]
[348283903,1736433035134,-648.9468074,0.00020261,3]
[348283905,1736433035144,-500.0,0.00020261,3]
[348283907,1736433035154,-166.78,0.00020261,3]
[348283909,1736433035163,-500.0,0.00020261,3]
[348283911,1736433035172,-322.8572284,0.00020261,3]
[348283913,1736433035182,-581.81,0.00020261,3]
[348283915,1736433035191,-2026.64,0.00020261,3]
[348283917,1736433035200,-500.0,0.00020261,3]
[348283919,1736433035210,-756.54,0.00020267,3]
[348283921,1736433035220,-500.0,0.00020269,3]
[348283923,1736433035230,-400.0,0.00020447,2]
[348283925,1736433035239,-295.05509559,0.00020532,3]
[348283927,1736433035248,-500.0,0.00020532,3]
[348283929,1736433035258,-500.0,0.00020532,3]
[348283931,1736433035267,-500.0,0.00020532,3]
[348283933,1736433035277,-50.97127898,0.00020534,2]
[348284232,1736433039126,-164.39541055,0.00019887,2]
[348284234,1736433039136,-511.77872102,0.00020534,2]
[348284236,1736433039146,-48.52070043,0.00020534,3]
[348284249,1736433040916,-451.47929957,0.00020534,3]
[348284251,1736433040926,-265.87,0.00020534,3]
[348284253,1736433040936,-500.0,0.00020534,3]
[348284255,1736433040946,-236.34,0.00020534,3]
[348284257,1736433040955,-499.05,0.00020535,3]
[348284258,1736433040966,-335.0835746,0.00020535,3]
[348284260,1736433040975,-99.64775527,0.00020535,3]
[348284262,1736433040987,-1926.99224473,0.00020535,3]
[348284263,1736433040997,-756.54,0.00020541,3]
[348284264,1736433041007,-500.0,0.00020543,3]
[348284265,1736433041016,-500.0,0.00020806,3]
[348284266,1736433041026,-562.75,0.00020808,2]
[348284267,1736433041035,-500.0,0.00020808,3]
[348284268,1736433041045,-589.54,0.00020808,3]
[348284269,1736433041055,-2026.64,0.00020809,3]
[348284270,1736433041064,-756.54,0.00020815,3]
[348284271,1736433041074,-500.0,0.00020817,3]
[348284272,1736433041084,-562.75,0.00021082,2]
[348284273,1736433041096,-500.0,0.00021082,3]
[348284274,1736433041105,-2026.64,0.00021083,3]
[348284276,1736433041114,-756.54,0.00021089,3]
[348284278,1736433041124,-500.0,0.00021091,3]
[348284280,1736433041133,-562.75,0.00021356,2]
[348284282,1736433041143,-500.0,0.00021356,3]
[348284284,1736433041152,-2026.64,0.00021357,3]
[348284285,1736433041161,-756.54,0.00021363,3]
[348284287,1736433041170,-500.0,0.00021365,3]
[348284289,1736433041180,-562.75,0.0002163,2]
[348284290,1736433041190,-500.0,0.0002163,3]
[348284291,1736433041199,-2026.64,0.00021631,3]
[348284292,1736433041209,-756.54,0.00021637,3]
[348284293,1736433041218,-500.0,0.00021639,3]
[348284294,1736433041227,-562.75,0.00021904,2]
[348284295,1736433041236,-500.0,0.00021904,3]
[348284296,1736433041246,-2026.64,0.00021905,3]
[348284297,1736433041255,-756.54,0.00021911,3]
[348284298,1736433041264,-500.0,0.00021913,3]
[348284299,1736433041273,-562.75,0.00022178,2]
[348284300,1736433041283,-336.22434411,0.00022178,3]
[348284301,1736433041293,-2026.64,0.00022179,3]
[348284302,1736433041303,-756.54,0.00022185,3]
[348284303,1736433041313,-500.0,0.00022187,3]
[348284304,1736433041322,-562.75,0.00022452,2]
[348284305,1736433041332,-2026.64,0.00022453,3]
[348284306,1736433041343,-756.54,0.00022459,3]
[348284307,1736433041353,-500.0,0.00022461,3]
[348284308,1736433041362,-562.75,0.00022726,2]
[348284309,1736433041371,-2026.64,0.00022727,3]
[348284310,1736433041381,-756.54,0.00022733,3]
[348284311,1736433041391,-500.0,0.00022735,3]
[348284312,1736433041401,-171.93786755,0.00022889,2]
[348284313,1736433041480,-409.0688124,0.00022889,2]
[348284314,1736433041500,-210.71113613,0.00022889,2]
[348284315,1736433041510,-17050.1447501,0.0002289,5]
[348284316,1736433041520,-228.65,0.00023,2]
[348284317,1736433041530,-562.75,0.00023,2]
[348284318,1736433041539,-2026.64,0.00023001,3]
[348284319,1736433041548,-756.54,0.00023007,3]
[348284320,1736433041558,-500.0,0.00023009,3]
[348284321,1736433041568,-500.0,0.00023086,3]
[348284322,1736433041577,-500.0,0.00023086,3]
[348284323,1736433041587,-500.0,0.00023086,3]
[348284324,1736433041597,-500.0,0.00023086,3]
[348284325,1736433041607,-500.0,0.00023086,3]